bitfinex/quotes_SOLUSD_20250108
["timestamp","ask_amount","ask_price","bid_price","bid_amount"]
[1736299787893,0.12549,201.45,201.38,9.47677817]
[1736299788589,0.12549,201.45,201.39,23.776884]
[1736299789193,0.12549,201.45,201.39,9.47677817]
[1736299789700,0.12549,201.45,201.37,33.25366217]
[1736299789881,0.12549,201.45,201.37,23.776884]
[1736299790085,0.12549,201.45,201.37,33.25366217]
[1736299790787,0.12549,201.42,201.33,8.46363612]
[1736299791100,0.12549,201.42,201.34,9.47677817]
[1736299791404,0.12549,201.42,201.33,17.19580024]
[1736299791694,0.12549,201.42,201.31,22.00974414]
[1736299791695,0.12549,201.42,201.31,17.19580024]
[1736299792068,0.12549,201.42,201.32,33.25366217]
[1736299792897,0.12549,201.42,201.32,9.47677817]
[1736299793207,0.12549,201.42,201.31,9.47677817]
[1736299793378,0.12549,201.42,201.32,23.776884]
[1736299796902,0.12549,201.42,201.33,9.47677817]
[1736299798897,0.12549,201.42,201.32,23.776884]
[1736299799103,0.12549,201.42,201.33,9.47677817]
[1736299799310,0.12549,201.42,201.34,23.776884]
[1736299799604,0.12549,201.42,201.36,23.776884]
[1736299800913,0.12549,201.42,201.34,9.47677817]
[1736299801394,0.12549,201.42,201.32,9.47677817]
[1736299801595,0.12549,201.42,201.33,9.47677817]
[1736299801787,0.12549,201.42,201.36,9.47677817]
[1736299801986,6.6542,201.46,201.39,23.776884]
[1736299802401,0.12549,201.45,201.38,23.776884]
[1736299803001,0.12549,201.45,201.35,9.47677817]
[1736299803199,0.12549,201.45,201.36,9.47677817]
[1736299803503,0.12549,201.45,201.37,23.776884]
[1736299804505,0.12549,201.45,201.4,33.25366217]
[1736299804686,0.12549,201.45,201.38,9.47677817]
[1736299805092,0.12549,201.45,201.39,23.776884]
[1736299805396,0.12549,201.45,201.39,33.998264]
[1736299805703,0.12549,201.47,201.4,9.47677817]
[1736299806205,0.12549,201.47,201.44,33.25366217]
[1736299806814,0.12549,201.47,201.44,23.776884]
[1736299808314,2.34,201.55,201.46,9.47677817]
[1736299808620,0.12549,201.55,201.48,23.776884]
[1736299808823,7.59207423,201.62,201.41,29.792684]
[1736299808824,13.78197423,201.62,201.53,9.47677817]
[1736299809179,0.12549,201.61,201.5,23.776884]
[1736299809386,0.12549,201.61,201.49,23.776884]
[1736299809818,0.12549,201.58,201.47,23.776884]
[1736299809983,0.12549,201.58,201.47,33.25366217]
[1736299813394,2.46549,201.58,201.42,0.74429921]
[1736299813596,0.12549,201.54,201.42,9.47677817]
[1736299813818,0.12549,201.51,201.43,23.776884]
[1736299814283,0.12549,201.51,201.39,2.25816412]
[1736299814485,2.46549,201.51,201.38,9.47677817]
[1736299815208,2.46549,201.51,201.4,23.776884]
[1736299815437,0.12549,201.49,201.4,23.776884]
[1736299815627,0.12549,201.49,201.4,33.25366217]
[1736299816202,0.12549,201.49,201.4,23.776884]
[1736299818508,2.34,201.51,201.41,9.47677817]
[1736299819209,0.12549,201.5,201.41,9.47677817]
[1736299819524,0.12549,201.5,201.42,33.25366217]
[1736299820106,2.34,201.53,201.43,9.47677817]
[1736299820307,2.34,201.53,201.44,33.25366217]
[1736299820511,20.12549,201.52,201.44,23.776884]
[1736299822029,20.12549,201.52,201.44,9.47677817]
[1736299824251,20.12549,201.52,201.42,23.776884]
[1736299824953,20.12549,201.52,201.42,9.47677817]
[1736299831375,20.12549,201.52,201.44,23.776884]
[1736299832446,20.12549,201.52,201.46,9.47677817]
[1736299832673,8.3547,201.55,201.47,23.776884]
[1736299832865,0.12549,201.54,201.47,23.776884]
[1736299833167,0.12549,201.54,201.43,9.47677817]
[1736299833359,0.12549,201.51,201.44,23.776884]
[1736299834370,0.12549,201.51,201.44,9.47677817]
[1736299845590,0.12549,201.51,201.45,23.776884]
[1736299846589,0.12549,201.51,201.47,23.776884]
[1736299846790,8.3547,201.55,201.47,23.776884]
[1736299847095,0.12549,201.54,201.47,23.776884]
[1736299851989,0.12549,201.54,201.48,9.47677817]
[1736299852193,27.57383237,201.57,201.49,9.47677817]
[1736299852395,0.12549,201.56,201.49,9.47677817]
[1736299853793,0.12549,201.56,201.49,23.776884]
[1736299854175,0.12549,201.56,201.48,23.776884]
[1736299854575,0.12549,201.56,201.46,23.776884]
[1736299854893,0.12549,201.56,201.46,9.47677817]
[1736299855195,0.12549,201.56,201.48,23.776884]
[1736299857886,0.12549,201.56,201.5,23.776884]
[1736299858910,6.2295,201.6,201.52,23.776884]
[1736299859072,6.2295,201.6,201.46,12.4093]
[1736299859073,6.2295,201.6,201.54,23.776884]
[1736299859271,0.12549,201.59,201.54,23.776884]
[1736299859706,0.12549,201.59,201.56,23.776884]
[1736299860002,45.55244539,201.68,201.58,23.776884]
[1736299860003,7.59207423,201.68,201.58,23.776884]
[1736299860373,0.12549,201.67,201.54,9.47677817]
[1736299860571,0.12549,201.67,201.49,1.5509]
[1736299860572,0.12549,201.64,201.49,1.5509]
[1736299860769,0.12549,201.64,201.52,9.47677817]
[1736299861030,0.12549,201.64,201.53,23.776884]
[1736299861508,0.12549,201.64,201.49,3.8709]
[1736299861806,0.12549,201.64,201.52,23.776884]
[1736299861976,0.12549,201.64,201.52,33.25366217]
[1736299862374,0.12549,201.64,201.52,23.776884]
[1736299862916,0.12549,201.64,201.52,33.25366217]
[1736299863079,0.12549,201.64,201.55,23.776884]
[1736299864140,0.12549,201.64,201.55,9.47677817]
[1736299864286,0.12549,201.64,201.57,23.776884]
[1736299864687,27.19194439,201.68,201.6,23.776884]
[1736299864893,0.12549,201.67,201.52,13.1496634]
[1736299865077,0.12549,201.67,201.55,9.47677817]
[1736299865721,0.12549,201.64,201.55,23.776884]
[1736299866406,0.12549,201.64,201.55,9.47677817]
[1736299866583,0.12549,201.64,201.56,23.776884]
[1736299867510,0.12549,201.64,201.56,9.47677817]
[1736299867714,27.19194439,201.68,201.6,23.776884]
[1736299867933,27.19194439,201.68,201.6,33.25366217]
[1736299868231,6.663,201.76,201.67,9.47677817]
[1736299868396,14.25507423,201.81,201.76,23.776884]
[1736299868597,14.25507423,201.81,201.78,9.47677817]
[1736299868897,7.59207423,201.81,201.78,9.47677817]
[1736299869318,7.59207423,201.81,201.76,9.47677817]
[1736299869621,6.663,201.86,201.77,2.32]
[1736299869996,20.0,201.83,201.77,11.79677817]
[1736299870407,0.12549,201.82,201.77,11.79677817]
[1736299870608,0.12549,201.82,201.78,33.25366217]
[1736299870805,6.663,201.86,201.79,9.47677817]
[1736299871202,0.12549,201.85,201.73,0.74315152]
[1736299871400,0.12549,201.82,201.75,9.47677817]
[1736299871625,0.12549,201.82,201.76,23.776884]
[1736299871939,0.12549,201.82,201.76,33.25366217]
[1736299872232,0.12549,201.82,201.73,7.71902207]
[1736299872437,0.12549,201.82,201.72,7.71902207]
[1736299872914,0.12549,201.8,201.67,17.19580024]
[1736299873113,0.12549,201.8,201.67,7.71902207]
[1736299873314,0.12549,201.73,201.66,7.71902207]
[1736299873645,0.12549,201.73,201.66,17.19580024]
[1736299873934,6.1392,201.77,201.65,9.47677817]
[1736299873935,0.12549,201.76,201.65,9.47677817]
[1736299875136,0.12549,201.76,201.66,23.776884]
[1736299875853,20.0,201.74,201.65,23.776884]
[1736299876513,20.0,201.74,201.65,14.76494653]
[1736299876919,20.0,201.74,201.67,23.776884]
[1736299877251,20.0,201.74,201.64,38.54183053]
[1736299878660,20.0,201.74,201.65,14.76494653]
[1736299878951,20.0,201.74,201.64,38.54183053]
[1736299881050,20.0,201.74,201.62,14.76494653]
[1736299881261,20.0,201.74,201.61,14.76494653]
[1736299881751,20.0,201.74,201.62,23.776884]
[1736299882352,20.0,201.74,201.62,38.54183053]
[1736299882647,20.0,201.74,201.64,23.776884]
[1736299884161,20.0,201.74,201.61,38.54183053]
[1736299887057,20.0,201.74,201.62,14.76494653]
[1736299887649,20.0,201.74,201.61,38.54183053]
[1736299888357,25.0,201.69,201.6,0.74378619]
[1736299888666,0.12549,201.62,201.58,15.43804414]
[1736299889361,0.12549,201.62,201.59,23.776884]
[1736299889661,0.12549,201.62,201.53,23.776884]
[1736299889965,8.5955,201.66,201.57,23.776884]
[1736299890635,0.12549,201.65,201.55,14.76494653]
[1736299890832,0.12549,201.65,201.52,15.50890399]
[1736299891143,0.12549,201.62,201.52,24.52084146]
[1736299891342,0.12549,201.62,201.53,23.776884]
[1736299891757,0.12549,201.62,201.51,0.74404953]
[1736299891949,0.12549,201.62,201.5,14.76494653]
[1736299892269,0.12549,201.62,201.5,23.776884]
[1736299892767,0.12549,201.62,201.49,4.57799376]
[1736299893059,0.12549,201.62,201.5,23.776884]
[1736299893265,0.12549,201.62,201.5,38.54183053]
[1736299894661,0.12549,201.62,201.5,23.776884]
[1736299895369,0.12549,201.62,201.5,38.54183053]
[1736299895664,0.12549,201.62,201.52,23.776884]
[1736299896970,0.12549,201.62,201.53,0.7440915]
[1736299897148,0.12549,201.62,201.55,23.776884]
[1736299898070,0.12549,201.62,201.55,24.52086158]
[1736299898269,8.5955,201.66,201.55,39.28580811]
[1736299898643,0.12549,201.65,201.55,38.54183053]
[1736299899064,0.12549,201.65,201.57,23.776884]
[1736299899262,0.12549,201.65,201.57,38.54183053]
[1736299899464,6.4668,201.73,201.59,38.54183053]
[1736299899661,2.32,201.72,201.59,38.54183053]
[1736299899977,0.12549,201.69,201.61,23.776884]
[1736299900359,0.12549,201.71,201.61,23.776884]
[1736299900857,0.12549,201.71,201.59,14.76494653]
[1736299901063,0.12549,201.69,201.6,23.776884]
[1736299902879,0.12549,201.69,201.6,38.54183053]
[1736299903065,2.32,201.72,201.62,38.54183053]
[1736299903260,0.12549,201.71,201.62,23.776884]
[1736299903772,0.12549,201.71,201.61,23.776884]
[1736299904584,0.12549,201.72,201.62,14.76494653]
[1736299904757,0.12549,201.72,201.63,23.776884]
[1736299905084,0.12549,201.72,201.61,14.76494653]
[1736299905448,0.12549,201.69,201.6,23.776884]
[1736299906175,0.12549,201.69,201.6,38.54183053]
[1736299906672,0.12549,201.69,201.6,23.776884]
[1736299907758,0.12549,201.69,201.58,14.76494653]
[1736299908159,0.12549,201.69,201.59,23.776884]
[1736299908453,0.12549,201.69,201.55,15.43804414]
[1736299908454,0.12549,201.69,201.56,14.76494653]
[1736299908771,0.12549,201.69,201.59,23.776884]
[1736299908968,0.12549,201.69,201.59,38.54183053]
[1736299909853,0.12549,201.69,201.6,14.76494653]
[1736299911185,0.12549,201.69,201.59,14.76494653]
[1736299911672,0.12549,201.69,201.6,38.54183053]
[1736299911855,0.12549,201.69,201.62,23.776884]
[1736299914278,6.4668,201.73,201.64,38.54183053]
[1736299914681,0.12549,201.72,201.64,38.54183053]
[1736299914979,0.12549,201.72,201.64,23.776884]
[1736299916093,0.12549,201.72,201.62,38.54183053]
[1736299917291,0.12549,201.72,201.62,9.45193415]
[1736299917461,0.12549,201.72,201.64,23.776884]
[1736299918766,0.12549,201.72,201.62,9.45193415]
[1736299920881,0.12549,201.72,201.64,9.45193415]
[1736299921061,0.12549,201.72,201.64,23.776884]
[1736299927990,0.12549,201.69,201.62,15.43804414]
[1736299928672,0.12549,201.69,201.63,23.776884]
[1736299928866,0.12549,201.69,201.62,15.43804414]
[1736299929087,0.12549,201.69,201.56,15.43804414]
[1736299929690,0.12549,201.69,201.57,23.776884]
[1736299930189,0.12549,201.69,201.56,23.776884]
[1736299931585,20.12549,201.69,201.54,47.85843243]
[1736299931791,0.12549,201.64,201.54,46.31413243]
[1736299932272,0.12549,201.64,201.55,23.776884]
[1736299933490,6.2262,201.68,201.56,9.45193415]
[1736299933670,6.2262,201.68,201.58,23.776884]
[1736299933867,6.2262,201.68,201.58,9.45193415]
[1736299934071,0.12549,201.67,201.6,23.776884]
[1736299934474,0.12549,201.67,201.6,9.45193415]
[1736299934979,0.12549,201.67,201.6,33.22881815]
[1736299935183,0.12549,201.67,201.61,23.776884]
[1736299936293,0.12549,201.67,201.6,23.776884]
[1736299938305,0.12549,201.67,201.6,9.45193415]
[1736299940112,0.12549,201.67,201.59,39.21492814]
[1736299940617,0.12549,201.67,201.57,15.43804414]
[1736299940791,0.12549,201.64,201.57,15.43804414]
[1736299940979,0.12549,201.64,201.6,5.0]
[1736299944500,0.12549,201.64,201.6,10.0]
[1736299946106,0.12549,201.64,201.6,15.0]
[1736299948104,0.12549,201.64,201.61,23.776884]
[1736299949304,8.5462,201.68,201.61,23.776884]
[1736299949494,0.12549,201.67,201.61,23.776884]
[1736299951716,0.12549,201.69,201.61,23.776884]
[1736299958805,0.12549,201.67,201.61,23.776884]
[1736299959407,20.12549,201.7,201.61,23.776884]
[1736299962609,20.12549,201.7,201.61,39.21492814]
[1736299963710,20.12549,201.7,201.61,23.776884]
[1736299970312,20.12549,201.7,201.63,23.776884]
[1736299971035,20.12549,201.7,201.62,23.776884]
[1736299971337,20.12549,201.7,201.61,23.776884]
[1736299973824,20.12549,201.7,201.61,39.21492814]
[1736299974131,20.12549,201.7,201.61,48.66686229]
[1736299974918,20.12549,201.7,201.63,15.43804414]
[1736299975328,22.32,201.75,201.65,23.776884]
[1736299975547,0.12549,201.74,201.65,23.776884]
[1736299976809,0.12549,201.74,201.65,39.21492814]
[1736299979831,0.12549,201.74,201.67,23.776884]
[1736299980030,8.5174,201.78,201.67,23.776884]
[1736299980232,0.12549,201.77,201.67,23.776884]
[1736299980739,6.1974,201.78,201.69,23.776884]
[1736299981041,0.12549,201.77,201.69,23.776884]
[1736299983741,0.12549,201.74,201.69,23.776884]
[1736299983918,0.12549,201.74,201.67,15.43804414]
[1736299984640,0.12549,201.74,201.68,23.776884]
[1736299985118,0.12549,201.74,201.68,9.45193415]
[1736299986548,19.94029466,201.75,201.68,9.45193415]
[1736299986847,19.94029466,201.75,201.68,23.776884]
[1736299987037,19.94029466,201.75,201.66,24.88997829]
[1736299987217,19.94029466,201.75,201.67,23.776884]
[1736299989725,19.94029466,201.75,201.65,23.776884]
[1736299990130,19.94029466,201.75,201.65,9.45193415]
[1736299992753,0.12549,201.77,201.65,9.45193415]
[1736299992952,20.0,201.75,201.65,9.45193415]
[1736299993152,20.0,201.75,201.67,9.45193415]
[1736299995454,6.1974,201.78,201.69,9.45193415]
[1736299995754,0.12549,201.77,201.7,23.776884]
[1736299996444,0.12549,201.77,201.68,23.776884]
[1736299998358,0.12549,201.77,201.7,23.776884]
[1736300000458,0.12549,201.77,201.72,23.776884]
[1736300000638,34.47020192,201.8,201.69,15.43804414]
[1736300000833,34.47020192,201.8,201.69,24.88997829]
[1736300001052,0.12549,201.79,201.7,23.776884]
[1736300004832,0.12549,201.79,201.68,22.75804414]
[1736300005039,0.12549,201.76,201.68,20.43804414]
[1736300005237,0.12549,201.76,201.69,15.43804414]
[1736300005955,0.12549,201.76,201.69,23.776884]
[1736300009365,0.12549,201.76,201.69,31.54835178]
[1736300009968,0.12549,201.76,201.69,36.54835178]
[1736300010947,0.12549,201.76,201.7,7.77146778]
[1736300011150,17.3130314,201.77,201.71,23.776884]
[1736300011875,17.3130314,201.77,201.69,36.54835178]
[1736300012351,17.3130314,201.77,201.7,23.776884]
[1736300013363,17.3130314,201.77,201.69,5.0]
[1736300013663,19.6330314,201.77,201.69,28.776884]
[1736300013966,0.12549,201.72,201.69,28.776884]
[1736300020851,0.12549,201.72,201.69,5.0]
[1736300024075,0.12549,201.7,201.69,5.0]
[1736300024262,2.44549,201.7,201.69,5.0]
[1736300024465,2.44549,201.7,201.69,3.453614]
[1736300024880,20.12549,201.69,201.68,5.0]
[1736300026463,0.12549,201.69,201.68,5.0]
[1736300026870,20.12549,201.69,201.68,5.0]
[1736300030385,0.12549,201.69,201.68,5.0]
[1736300054683,0.12549,201.69,201.56,9.34926778]
[1736300054684,0.12549,201.65,201.56,9.34926778]
[1736300055009,2.44549,201.65,201.56,9.34926778]
[1736300055190,2.44549,201.65,201.57,23.776884]
[1736300055388,2.44549,201.65,201.56,1.5778]
[1736300058409,0.12549,201.63,201.56,1.5778]
[1736300058586,0.12549,201.63,201.51,9.42196778]
[1736300058911,0.12549,201.63,201.52,23.776884]
[1736300059995,2.32,201.65,201.47,7.77146778]
[1736300059996,6.31419,201.61,201.47,7.77146778]
[1736300060197,0.12549,201.57,201.47,7.77146778]
[1736300060912,0.12549,201.57,201.48,23.776884]
[1736300061316,0.12549,201.57,201.47,23.776884]
[1736300061715,0.12549,201.57,201.46,1.5628]
[1736300061716,20.12549,201.57,201.46,1.5628]
[1736300062211,20.12549,201.57,201.47,23.776884]
[1736300064717,22.13958666,201.57,201.47,23.776884]
[1736300067802,22.13958666,201.57,201.47,28.876884]
[1736300079833,4.45958666,201.57,201.47,38.32881815]
[1736300080008,6.1887,201.61,201.51,33.22881815]
[1736300080208,2.32,201.6,201.51,33.22881815]
[1736300080513,2.32,201.6,201.53,23.776884]
[1736300080902,0.12549,201.59,201.53,25.343684]
[1736300082124,0.12549,201.59,201.53,34.79561815]
[1736300082617,0.12549,201.59,201.53,25.343684]
[1736300083911,0.12549,201.59,201.53,34.79561815]
[1736300084123,0.12549,201.59,201.55,23.776884]
[1736300086252,20.0,201.63,201.55,23.776884]
[1736300086454,20.0,201.63,201.57,23.776884]
[1736300086927,0.12549,201.62,201.57,23.776884]
[1736300087542,2.32,201.66,201.57,23.776884]
[1736300087543,0.12549,201.65,201.57,23.776884]
[1736300087955,0.12549,201.65,201.57,33.22881815]
[1736300088159,0.12549,201.66,201.57,33.22881815]
[1736300089032,20.0,201.68,201.57,33.22881815]
[1736300089373,49.68665393,201.68,201.57,33.22881815]
[1736300089523,0.12549,201.67,201.57,33.22881815]
[1736300090134,0.12549,201.67,201.59,23.776884]
[1736300090453,0.12549,201.67,201.59,9.45193415]
[1736300090637,0.12549,201.67,201.59,23.776884]
[1736300092135,0.12549,201.67,201.6,23.776884]
[1736300092629,0.12549,201.67,201.6,33.22881815]
[1736300093359,0.12549,201.67,201.59,33.22881815]
[1736300094559,0.12549,201.67,201.6,11.02023415]
[1736300095263,0.12549,201.67,201.62,23.776884]
[1736300095562,0.12549,201.67,201.62,9.45193415]
[1736300098371,0.12549,201.67,201.61,33.22881815]
[1736300101678,0.12549,201.67,201.62,9.45193415]
[1736300102747,0.12549,201.67,201.61,33.22881815]
[1736300103371,0.12549,201.67,201.62,9.45193415]
[1736300103883,0.12549,201.67,201.64,23.776884]
[1736300104383,0.12549,201.64,201.58,7.77146778]
[1736300105695,0.12549,201.64,201.52,1.5105]
[1736300105856,0.12549,201.64,201.53,23.776884]
[1736300106261,0.12549,201.64,201.52,10.96243415]
[1736300106482,0.12549,201.64,201.52,1.5105]
[1736300107592,0.12549,201.64,201.53,23.776884]
[1736300108403,0.12549,201.64,201.47,14.43006778]
[1736300108712,0.12549,201.59,201.49,23.776884]
[1736300108870,0.12549,201.57,201.49,33.22881815]
[1736300109505,0.12549,201.57,201.48,33.22881815]
[1736300109678,0.12549,201.57,201.49,9.45193415]
[1736300110001,0.12549,201.57,201.5,9.45193415]
[1736300110214,0.12549,201.57,201.51,23.776884]
[1736300110594,0.12549,201.57,201.51,33.22881815]
[1736300110806,0.12549,201.57,201.53,23.776884]
[1736300111110,0.12549,201.57,201.53,9.45193415]
[1736300111682,0.12549,201.57,201.54,23.776884]
[1736300112110,0.12549,201.57,201.53,23.776884]
[1736300112403,0.12549,201.57,201.51,23.776884]
[1736300113088,0.12549,201.59,201.51,9.45193415]
[1736300113287,0.12549,201.59,201.47,14.43006778]
[1736300113288,20.12549,201.59,201.47,12.87146778]
[1736300113787,0.12549,201.54,201.48,23.776884]
[1736300113986,0.12549,201.52,201.48,23.776884]
[1736300114306,0.12549,201.52,201.47,5.1]
[1736300115297,20.12549,201.48,201.47,5.1]
[1736300115717,0.12549,201.47,201.36,7.77146778]
[1736300115924,0.12549,201.45,201.36,7.77146778]
[1736300116223,2.3,201.46,201.31,11.7480564]
[1736300116224,0.12549,201.43,201.34,7.77146778]
[1736300116426,2.3,201.46,201.34,7.77146778]
[1736300116427,0.12549,201.41,201.34,7.77146778]
[1736300116921,0.12549,201.41,201.33,23.776884]
[1736300117087,0.12549,201.36,201.24,7.77146778]
[1736300117285,0.12549,201.34,201.24,7.77146778]
[1736300117892,0.12549,201.34,201.26,33.22881815]
[1736300118092,20.0,201.37,201.27,23.776884]
[1736300118303,2.42549,201.36,201.27,23.776884]
[1736300118816,2.42549,201.36,201.26,23.776884]
[1736300119212,2.42549,201.36,201.22,0.74502604]
[1736300119501,2.42549,201.36,201.23,23.776884]
[1736300119706,2.42549,201.36,201.25,23.776884]
[1736300120032,0.12549,201.36,201.25,23.776884]
[1736300120338,2.32,201.35,201.27,23.776884]
[1736300120696,2.32,201.35,201.27,38.60472374]
[1736300120697,0.12549,201.34,201.27,38.60472374]
[1736300121336,0.12549,201.36,201.33,38.60472374]
[1736300121539,2.32,201.45,201.35,38.60472374]
[1736300121707,2.32,201.45,201.36,38.60472374]
[1736300123642,2.04788525,201.5,201.36,38.60472374]
[1736300123643,6.0355,201.54,201.38,14.82783974]
[1736300123797,6.0355,201.54,201.41,23.776884]
[1736300124004,6.0355,201.54,201.41,38.60472374]
[1736300124005,2.32,201.53,201.41,38.60472374]
[1736300124203,0.12549,201.52,201.41,38.60472374]
[1736300124454,0.12549,201.5,201.41,23.776884]
[1736300125502,0.12549,201.5,201.41,38.60472374]
[1736300125701,0.12549,201.5,201.41,14.82783974]
[1736300126139,0.12549,201.5,201.39,23.776884]
[1736300126443,0.12549,201.5,201.41,38.60472374]
[1736300127230,0.12549,201.5,201.41,23.776884]
[1736300128209,0.12549,201.5,201.38,14.82783974]
[1736300128413,0.12549,201.5,201.36,14.82783974]
[1736300128623,0.12549,201.5,201.37,23.776884]
[1736300128927,0.12549,201.5,201.37,38.60472374]
[1736300129530,0.12549,201.5,201.37,39.34932268]
[1736300130530,0.12549,201.5,201.37,38.60472374]
[1736300132120,0.12549,201.5,201.39,23.776884]
[1736300132429,0.12549,201.5,201.39,38.60472374]
[1736300132629,2.44549,201.5,201.39,38.60472374]
[1736300132839,2.44549,201.5,201.41,23.776884]
[1736300133511,2.44549,201.5,201.38,14.82783974]
[1736300133836,2.44549,201.5,201.39,23.776884]
[1736300134021,2.44549,201.5,201.39,38.60472374]
[1736300135131,2.44549,201.5,201.39,23.776884]
[1736300135515,2.44549,201.5,201.39,38.60472374]
[1736300135712,2.44549,201.5,201.39,23.776884]
[1736300136834,2.44549,201.5,201.39,38.60472374]
[1736300137030,2.44549,201.5,201.39,39.34925315]
[1736300137236,2.44549,201.5,201.41,23.776884]
[1736300137619,2.44549,201.5,201.39,14.82783974]
[1736300137826,2.44549,201.5,201.39,15.57234178]
[1736300138639,2.44549,201.5,201.41,23.776884]
[1736300138940,0.12549,201.5,201.41,39.34918494]
[1736300139118,8.3555,201.54,201.43,14.82783974]
[1736300139319,0.12549,201.5,201.42,38.60472374]
[1736300140135,0.12549,201.5,201.43,15.57225521]
[1736300140328,0.12549,201.53,201.47,23.776884]
[1736300140535,0.12549,201.53,201.49,38.60472374]
[1736300140726,6.3898,201.58,201.49,38.60472374]
[1736300141127,0.12549,201.57,201.49,38.60472374]
[1736300141629,0.12549,201.61,201.51,23.776884]
[1736300142423,0.12549,201.59,201.51,23.776884]
[1736300143117,0.12549,201.59,201.53,23.776884]
[1736300143314,0.12549,201.59,201.45,0.74408319]
[1736300143518,0.12549,201.59,201.43,0.74431084]
[1736300144014,0.12549,201.59,201.44,23.776884]
[1736300144219,20.12549,201.55,201.39,8.51584748]
[1736300144420,0.12549,201.53,201.4,23.776884]
[1736300145027,0.12549,201.53,201.39,23.776884]
[1736300145233,0.12549,201.53,201.37,1.6516]
[1736300145234,0.12549,201.48,201.35,0.74452159]
[1736300145834,0.12549,201.48,201.37,20.0]
[1736300146140,0.12549,201.46,201.34,0.74464725]
[1736300146319,0.12549,201.46,201.32,17.22416482]
[1736300146524,0.12549,201.46,201.33,23.776884]
[1736300146724,0.12549,201.46,201.35,23.776884]
[1736300147134,0.12549,201.46,201.32,1.6516]
[1736300147338,0.12549,201.46,201.3,0.74468604]
[1736300147543,0.12549,201.41,201.29,14.82783974]
[1736300147847,0.12549,201.39,201.28,7.77146778]
[1736300148231,22.3,201.4,201.26,7.77146778]
[1736300148743,0.12549,201.39,201.27,23.776884]
[1736300149474,0.12549,201.39,201.25,23.776884]
[1736300150451,0.12549,201.39,201.25,38.60472374]
[1736300150749,0.12549,201.39,201.25,23.776884]
[1736300151323,0.12549,201.39,201.23,7.77146778]
[1736300151324,0.12549,201.34,201.23,7.77146778]
[1736300151521,0.12549,201.32,201.23,7.77146778]
[1736300151726,0.12549,201.32,201.23,22.59930752]
[1736300152144,0.12549,201.32,201.23,7.77146778]
[1736300152342,22.3,201.33,201.21,7.77146778]
[1736300152660,22.3,201.33,201.22,23.776884]
[1736300152950,22.3,201.33,201.18,7.77146778]
[1736300153245,0.12549,201.28,201.18,7.77146778]
[1736300153453,0.12549,201.26,201.18,7.77146778]
[1736300153626,0.12549,201.24,201.18,7.77146778]
[1736300154055,0.12549,201.24,201.12,22.59930752]
[1736300154266,0.12549,201.24,201.13,23.776884]
[1736300154847,0.12549,201.19,201.1,7.77146778]
[1736300155425,20.0,201.2,201.1,7.77146778]
[1736300155625,20.0,201.2,201.11,23.776884]
[1736300156446,20.0,201.2,201.09,23.776884]
[1736300156852,20.0,201.2,201.09,31.54835178]
[1736300158352,20.0,201.2,201.09,23.776884]
[1736300159756,20.0,201.2,201.08,23.776884]
[1736300160257,2.32,201.19,201.11,23.776884]
[1736300160635,2.32,201.19,201.09,47.53545202]
[1736300160934,20.0,201.2,201.12,23.776884]
[1736300161146,2.32,201.21,201.11,23.75856802]
[1736300161456,20.12549,201.2,201.1,23.75856802]
[1736300161671,20.12549,201.2,201.13,23.776884]
[1736300161830,20.12549,201.2,201.13,23.75856802]
[1736300162030,0.12549,201.2,201.15,23.75856802]
[1736300162740,2.32,201.27,201.2,23.776884]
[1736300162935,0.12549,201.26,201.15,23.75856802]
[1736300163138,0.12549,201.26,201.13,7.77146778]
[1736300163459,20.0,201.24,201.11,7.77146778]
[1736300163933,20.0,201.24,201.08,7.77146778]
[1736300163934,20.0,201.2,201.08,7.77146778]
[1736300164138,22.32,201.19,201.07,7.77146778]
[1736300164338,0.12549,201.14,201.07,7.77146778]
[1736300164953,0.12549,201.14,201.03,23.75856802]